bitfinex/quotes_SOLUSD_20251115
["timestamp","ask_amount","ask_price","bid_price","bid_amount"]
[1763211544435,25.36960822,141.17,141.15,0.68]
[1763211545050,25.36960822,141.17,141.15,7.76437672]
[1763211545361,25.36960822,141.17,141.15,29.05985143]
[1763211545525,2.71840822,141.17,141.16,0.68]
[1763211545925,2.71840822,141.18,141.16,21.97245182]
[1763211546229,2.71840822,141.19,141.16,21.97245182]
[1763211546431,2.71840822,141.2,141.17,0.68]
[1763211546747,0.2,141.21,141.17,3.39840822]
[1763211547057,2.91840822,141.21,141.18,9.92154546]
[1763211547349,2.91840822,141.21,141.18,10.60154546]
[1763211547556,2.91840822,141.21,141.19,0.68]
[1763211548441,2.91840822,141.21,141.14,0.68]
[1763211548442,3.40840822,141.2,141.14,0.68]
[1763211548652,25.36960822,141.18,141.15,17.70877162]
[1763211548843,25.36960822,141.18,141.12,0.68]
[1763211549045,25.36960822,141.18,141.12,21.11759455]
[1763211549046,0.69,141.17,141.12,21.11759455]
[1763211549748,2.71840822,141.13,141.12,21.11759455]
[1763211552055,2.71840822,141.13,141.12,0.68]
[1763211554666,2.71840822,141.13,141.12,21.98001065]
[1763211555258,2.71840822,141.13,141.12,0.68]
[1763211559063,2.71840822,141.13,141.11,21.30001065]
[1763211559261,2.71840822,141.12,141.11,21.99001065]
[1763211560447,2.71840822,141.12,141.04,35.4494961]
[1763211560448,6.10681644,141.12,141.08,0.69]
[1763211560646,2.71840822,141.09,141.08,21.99454852]
[1763211561382,2.71840822,141.1,141.08,21.99454852]
[1763211562787,2.71840822,141.1,141.09,0.69]
[1763211563078,1.73984835,141.1,141.09,0.69]
[1763211563584,1.73984835,141.11,141.09,0.69]
[1763211570691,0.67,141.11,141.07,0.69]
[1763211570871,1.73984835,141.1,141.07,0.69]
[1763211571683,1.73984835,141.08,141.05,7.08952103]
[1763211571970,1.73984835,141.08,141.05,21.99757484]
[1763211572490,1.73984835,141.07,141.05,21.99757484]
[1763211572694,1.73984835,141.07,141.06,0.69]
[1763211573069,1.73984835,141.07,141.04,28.39910119]
[1763211573271,1.73984835,141.07,141.05,0.69]
[1763211574379,1.73984835,141.08,141.05,0.69]
[1763211576203,1.73984835,141.08,141.05,7.77956889]
[1763211576695,1.73984835,141.09,141.06,0.69]
[1763211577580,1.73984835,141.08,141.06,0.69]
[1763211581306,1.73984835,141.08,141.03,17.72596289]
[1763211581307,1.73984835,141.07,141.04,0.69]
[1763211581474,1.73984835,141.06,141.04,0.69]
[1763211581674,1.73984835,141.07,141.04,0.69]
[1763211582193,103.3,141.11,141.04,2.42984835]
[1763211582380,1.73984835,141.09,141.05,0.69]
[1763211583299,1.73984835,141.08,141.05,0.69]
[1763211588410,23.3612,141.1,141.05,7.77966145]
[1763211588577,1.73984835,141.09,141.05,7.77966145]
[1763211588779,1.08259691,141.09,141.06,0.72]
[1763211590382,1.73984835,141.08,141.06,0.72]
[1763211591305,1.73984835,141.1,141.06,9.54896]
[1763211591508,1.73984835,141.1,141.07,0.72]
[1763211592403,23.3612,141.12,141.07,7.80860799]
[1763211592708,1.73984835,141.1,141.07,7.80860799]
[1763211592902,1.73984835,141.1,141.08,0.72]
[1763211593104,1.73984835,141.11,141.08,0.72]
[1763211594611,1.73984835,141.1,141.08,0.72]
[1763211599298,1.73984835,141.09,141.05,7.08943863]
[1763211599610,1.73984835,141.08,141.06,21.30454852]
[1763211599911,1.73984835,141.08,141.06,22.02454852]
[1763211600319,1.73984835,141.08,141.06,21.30454852]
[1763211600618,1.73984835,141.07,141.06,0.72]
[1763211600823,1.73984835,141.07,141.05,0.72]
[1763211603208,1.73984835,141.07,141.04,21.30454852]
[1763211603414,1.73984835,141.06,141.03,0.72]
[1763211603617,1.73984835,141.05,141.03,0.72]
[1763211603822,16.74822109,141.12,141.02,28.40161017]
[1763211603823,1.73984835,141.04,141.02,21.31060202]
[1763211604130,1.73984835,141.04,141.01,0.72]
[1763211604435,1.73984835,141.03,141.01,22.03363006]
[1763211604652,1.73984835,141.03,141.01,21.31363006]
[1763211604840,24.39104835,141.06,140.99,0.72]
[1763211604841,1.73984835,141.02,140.99,0.72]
[1763211605134,2.44984835,141.02,140.99,0.72]
[1763211605307,1.73984835,141.02,140.99,0.72]
[1763211605623,1.73984835,141.05,141.0,1.73984835]
[1763211605818,1.73984835,141.05,141.0,11.67543428]
[1763211606028,1.73984835,141.05,141.01,0.72]
[1763211606523,0.71,141.06,141.01,0.72]
[1763211606714,1.73984835,141.05,141.01,9.55114168]
[1763211607227,1.73984835,141.05,141.02,0.72]
[1763211607814,113.08882769,141.09,141.0,18.76746823]
[1763211607815,1.73984835,141.03,141.01,0.72]
[1763211608326,2.44984835,141.02,140.97,1.83984835]
[1763211608506,29.6105934,141.06,140.98,10.65558593]
[1763211608507,1.73984835,141.0,140.98,10.65558593]
[1763211608832,1.73984835,140.99,140.97,0.82]
[1763211609009,1.73984835,140.98,140.97,0.1]
[1763211609409,2.44984835,140.98,140.97,0.1]
[1763211610033,1.73984835,140.98,140.97,0.1]
[1763211611213,2.44984835,140.98,140.97,0.1]
[1763211617436,1.73984835,140.98,140.97,0.1]
[1763211618033,2.44984835,140.98,140.97,0.1]
[1763211618931,0.71,141.04,140.97,0.82]
[1763211619130,1.73984835,141.01,140.97,0.82]
[1763211619347,1.73984835,141.0,140.97,0.82]
[1763211619640,0.71,141.03,140.97,22.14120393]
[1763211619641,1.73984835,140.99,140.97,22.14120393]
[1763211619936,1.73984835,140.98,140.97,0.1]
[1763211620350,1.73984835,140.99,140.97,0.82]
[1763211620553,1.73984835,141.0,140.97,0.82]
[1763211620934,1.73984835,141.01,140.97,0.82]
[1763211621136,1.73984835,141.0,140.97,0.82]
[1763211621844,1.73984835,141.01,140.97,9.653534]
[1763211622226,1.73984835,141.01,140.98,0.72]
[1763211622423,1.73984835,141.01,140.98,7.81312287]
[1763211622730,1.73984835,141.0,140.98,0.72]
[1763211624878,2.72245997,141.0,140.98,0.72]
[1763211625555,2.72245997,141.01,140.98,7.8131697]
[1763211625733,2.72245997,141.01,140.98,0.72]
[1763211625932,2.72245997,141.01,140.99,0.72]
[1763211626752,2.72245997,141.02,140.99,0.72]
[1763211626958,2.72245997,141.02,140.99,7.81268293]
[1763211627156,2.72245997,141.02,141.0,0.72]
[1763211627664,2.72245997,141.01,140.98,0.72]
[1763211627964,2.72245997,141.0,140.97,0.82]
[1763211628133,2.72245997,141.0,140.98,0.72]
[1763211628831,2.72245997,141.01,140.98,0.72]
[1763211629031,2.72245997,141.01,140.98,7.81318125]
[1763211629433,2.72245997,141.01,140.99,0.72]
[1763211630865,3.43245997,141.0,140.97,0.82]
[1763211631160,2.72245997,140.98,140.97,0.1]
[1763211631568,35.87248766,140.98,140.93,0.1]
[1763211631738,2.72245997,140.94,140.93,0.1]
[1763211631939,5.44491994,140.94,140.93,0.1]
[1763211632164,6.05491994,140.94,140.93,0.1]
[1763211632367,3.33245997,140.94,140.93,0.1]
[1763211633653,2.72245997,140.94,140.93,0.1]
[1763211636659,0.61,140.96,140.93,0.1]
[1763211636858,2.72245997,140.94,140.93,0.1]
[1763211637939,3.33245997,140.94,140.93,0.1]
[1763211638161,25.98365997,140.94,140.93,0.1]
[1763211639656,25.37365997,140.94,140.93,0.1]
[1763211640367,2.72245997,140.95,140.93,0.82]
[1763211640557,2.72245997,140.94,140.93,0.1]
[1763211645152,2.72245997,140.94,140.93,0.82]
[1763211645365,2.72245997,140.94,140.93,0.1]
[1763211648276,3.33245997,140.94,140.93,0.1]
[1763211648580,6.05491994,140.94,140.93,0.1]
[1763211649000,38.49494763,140.94,140.93,0.1]
[1763211649163,15.84374763,140.94,140.93,0.1]
[1763211650281,38.49494763,140.94,140.93,0.1]
[1763211652856,15.84374763,140.94,140.93,0.1]
[1763211653079,22.6512,140.93,140.92,0.1]
[1763211653259,25.98365997,140.93,140.92,0.1]
[1763211654266,25.37365997,140.93,140.92,0.1]
[1763211654478,35.16248766,140.93,140.92,0.1]
[1763211654864,35.77248766,140.93,140.92,0.1]
[1763211655475,35.16248766,140.93,140.92,0.1]
[1763211655705,35.77248766,140.93,140.92,0.1]
[1763211660764,10.39882769,140.92,140.9,0.1]
[1763211661068,22.6512,140.88,140.87,0.1]
[1763211661277,2.72245997,140.89,140.87,0.1]
[1763211661480,2.72245997,140.88,140.87,0.1]
[1763211662289,9.78882769,140.94,140.87,0.82]
[1763211662462,2.72245997,140.9,140.87,0.82]
[1763211662661,2.72245997,140.89,140.87,0.82]
[1763211663190,2.72245997,140.88,140.87,0.82]
[1763211668492,125.9512,140.91,140.87,0.82]
[1763211668672,2.72245997,140.9,140.87,0.82]
[1763211670694,2.72245997,140.88,140.87,0.1]
[1763211671375,2.72245997,140.88,140.87,0.79]
[1763211672095,2.72245997,140.9,140.87,0.79]
[1763211676597,2.72245997,140.89,140.87,0.79]
[1763211676893,103.3,140.91,140.87,0.79]
[1763211677097,106.02245997,140.91,140.87,0.79]
[1763211677701,103.3,140.91,140.87,0.79]
[1763211677876,103.3,140.91,140.87,3.51245997]
[1763211678078,2.72245997,140.9,140.87,0.79]
[1763211678398,2.72245997,140.88,140.87,0.1]
[1763211678877,6.05491994,140.88,140.87,0.1]
[1763211679078,38.49494763,140.88,140.87,0.1]
[1763211679400,32.44002769,140.87,140.86,0.1]
[1763211679707,35.77248766,140.87,140.86,0.1]
[1763211681674,25.37365997,140.87,140.86,0.1]
[1763211682292,25.37365997,140.87,140.86,0.8]
[1763211682488,2.72245997,140.87,140.86,0.8]
[1763211682691,2.72245997,140.88,140.86,0.8]
[1763211683484,22.6512,140.9,140.86,0.8]
[1763211683697,2.72245997,140.89,140.86,0.8]
[1763211684098,23.2612,140.92,140.86,0.8]
[1763211684099,2.72245997,140.88,140.86,0.8]
[1763211684684,2.72245997,140.87,140.86,0.1]
[1763211684883,0.61,140.88,140.86,0.1]
[1763211685082,1.74609353,140.87,140.86,0.1]
[1763211686505,1.74609353,140.88,140.86,0.8]
[1763211690686,1.74609353,140.89,140.86,0.8]
[1763211691098,103.3,140.9,140.86,0.8]
[1763211691292,1.74609353,140.89,140.86,0.8]
[1763211691698,1.74609353,140.88,140.86,0.8]
[1763211693099,103.3,140.9,140.86,0.8]
[1763211693300,1.74609353,140.89,140.86,0.8]
[1763211694015,105.04609353,140.9,140.86,0.8]
[1763211696307,1.74609353,140.89,140.86,0.8]
[1763211697114,105.04609353,140.9,140.86,0.8]
[1763211697510,1.74609353,140.91,140.86,9.64533156]
[1763211697889,103.3,140.93,140.87,2.44609353]
[1763211698097,1.74609353,140.92,140.88,1.74609353]
[1763211698410,105.04609353,140.93,140.88,2.44609353]
[1763211698612,105.04609353,140.93,140.89,0.7]
[1763211698794,1.74609353,140.92,140.89,0.7]
[1763211699492,103.3,140.93,140.87,0.7]
[1763211699493,1.74609353,140.9,140.87,0.7]
[1763211699691,1.74609353,140.89,140.87,0.7]
[1763211700007,0.61,140.92,140.87,0.7]
[1763211700008,1.74609353,140.9,140.87,0.7]
[1763211700215,1.74609353,140.88,140.86,0.1]
[1763211700388,1.74609353,140.87,140.86,0.1]
[1763211700796,2.35609353,140.87,140.86,0.1]
[1763211701012,1.74609353,140.87,140.86,0.8]
[1763211701313,1.74609353,140.88,140.86,0.8]
[1763211702595,105.04609353,140.89,140.86,0.8]
[1763211706214,1.74609353,140.9,140.86,2.54609353]
[1763211706422,1.74609353,140.91,140.87,1.74609353]
[1763211706606,1.74609353,140.91,140.87,2.39609353]
[1763211706802,24.39729353,140.92,140.88,0.65]
[1763211707414,103.3,140.93,140.88,2.39609353]
[1763211707415,105.04609353,140.93,140.88,2.39609353]
[1763211707618,105.04609353,140.93,140.89,0.65]
[1763211707823,24.39729353,140.93,140.89,0.65]
[1763211708013,24.39729353,140.93,140.89,2.39609353]
[1763211708213,1.74609353,140.94,140.9,0.65]
[1763211708821,1.74609353,140.92,140.9,0.65]
[1763211709025,1.74609353,140.92,140.87,1.74609353]
[1763211709324,1.74609353,140.92,140.89,0.65]
[1763211709910,1.74609353,140.9,140.86,0.75]
[1763211710106,1.74609353,140.89,140.86,0.75]
[1763211710813,0.61,140.91,140.86,2.49609353]
[1763211710814,1.74609353,140.91,140.86,2.49609353]
[1763211711031,1.74609353,140.91,140.87,0.65]
[1763211712108,1.74609353,140.9,140.87,0.65]
[1763211712638,1.74609353,140.92,140.87,2.39609353]
[1763211713139,1.74609353,140.92,140.88,0.65]
[1763211713341,1.74609353,140.93,140.88,2.39609353]
[1763211713703,1.74609353,140.91,140.86,8.94522206]
[1763211713910,1.74609353,140.9,140.86,7.84912853]
[1763211714203,1.74609353,140.9,140.87,0.65]
[1763211714616,1.74609353,140.91,140.87,0.65]
[1763211714933,1.74609353,140.91,140.87,2.39609353]
[1763211715111,1.74609353,140.92,140.87,9.49476242]
[1763211715409,1.74609353,140.92,140.88,0.65]
[1763211716022,103.3,140.93,140.89,1.74609353]
[1763211716229,1.74609353,140.94,140.9,7.74723207]
[1763211716619,1.74609353,140.94,140.91,0.65]
[1763211717326,24.39729353,140.95,140.91,0.65]
[1763211717827,1.74609353,140.95,140.91,0.65]
[1763211718332,0.61,140.98,140.92,7.0962248]
[1763211718521,1.74609353,140.96,140.92,8.84231833]
[1763211718834,1.74609353,140.97,140.93,0.65]
[1763211719813,1.74609353,140.98,140.93,2.39609353]
[1763211720315,1.74609353,140.98,140.94,7.74496471]
[1763211720933,1.74609353,140.97,140.94,0.65]
[1763211721140,1.74609353,140.96,140.95,0.65]
[1763211721440,1.74609353,140.97,140.95,0.65]
[1763211721732,1.74609353,140.98,140.95,0.65]
[1763211722041,1.74609353,140.97,140.95,0.65]
[1763211722245,1.74609353,140.98,140.95,0.65]
[1763211722437,1.74609353,140.98,140.95,7.74429112]
[1763211722738,1.74609353,140.97,140.95,0.65]
[1763211723117,1.74609353,140.98,140.95,7.74455652]
[1763211723514,1.74609353,141.0,140.96,2.39609353]
[1763211723725,9.98882769,141.04,140.96,0.65]
[1763211723726,0.2,141.04,140.96,0.65]
[1763211723927,1.74609353,141.01,140.97,0.65]
[1763211724533,22.6512,141.02,140.98,7.0932047]
[1763211724747,1.74609353,141.01,140.99,0.65]
[1763211727930,2.35609353,141.0,140.93,1.74609353]
[1763211728242,1.74609353,140.96,140.94,0.65]
[1763211728441,1.74609353,140.96,140.92,0.65]
[1763211728737,1.74609353,140.96,140.93,0.65]
[1763211728939,4.23729923,140.97,140.93,7.74553144]
[1763211729125,4.23729923,140.98,140.94,4.23729923]
[1763211729332,4.23729923,140.99,140.94,4.88729923]
[1763211729630,4.23729923,140.99,140.95,0.65]
[1763211729823,4.23729923,141.0,140.96,4.23729923]
[1763211730022,4.23729923,141.0,140.95,4.88729923]
[1763211730232,4.23729923,141.0,140.96,0.65]
[1763211731235,4.23729923,141.0,140.96,7.74387679]
[1763211731843,4.23729923,141.0,140.97,0.72]
[1763211732929,4.23729923,141.01,140.97,0.72]
[1763211733135,4.23729923,141.0,140.97,0.72]
[1763211733330,4.23729923,141.0,140.97,7.81327663]
[1763211733739,4.23729923,140.99,140.98,0.69]
[1763211733947,4.23729923,141.0,140.98,0.69]
[1763211734153,4.23729923,141.01,140.98,0.69]
[1763211735344,4.23729923,141.0,140.98,0.69]
[1763211735633,4.23729923,140.99,140.98,0.69]
[1763211736136,4.23729923,141.0,140.98,0.69]
[1763211737055,4.23729923,141.0,140.98,7.78308518]
[1763211737459,4.23729923,141.02,140.99,0.69]
[1763211738035,4.23729923,141.01,140.99,0.69]
[1763211738230,4.23729923,141.0,140.99,0.69]
[1763211738538,4.23729923,141.01,140.99,0.69]
[1763211739246,4.23729923,141.02,140.99,0.69]
[1763211739757,0.2,141.04,140.99,7.78228243]
[1763211739758,4.23729923,141.01,140.99,7.78228243]
[1763211739984,4.23729923,141.01,141.0,0.69]
[1763211740845,0.81,141.04,141.0,0.69]
[1763211741050,4.23729923,141.02,141.0,7.78219521]
[1763211741527,4.23729923,141.02,141.01,0.69]
[1763211743047,4.23729923,141.02,141.0,0.69]
[1763211743443,4.23729923,141.02,141.01,0.69]
[1763211743858,4.84729923,141.02,140.98,0.69]
[1763211744054,4.23729923,140.99,140.98,0.69]
[1763211744731,4.23729923,140.99,140.96,7.78415804]
[1763211744934,6.74249398,140.98,140.97,0.69]
[1763211746942,0.61,141.02,140.97,7.78370788]
[1763211746943,6.74249398,140.99,140.97,7.78370788]
[1763211747144,6.74249398,141.0,140.97,7.78370788]
[1763211747454,6.74249398,141.0,140.98,0.69]
[1763211748064,6.74249398,141.01,140.98,22.00817374]
[1763211748244,6.74249398,141.01,140.99,0.69]
[1763211748749,6.74249398,141.02,140.99,0.69]
[1763211748943,6.74249398,141.02,140.99,7.78262687]
[1763211749337,6.74249398,141.02,141.0,0.69]
[1763211750658,6.74249398,141.03,141.0,0.69]
[1763211750965,2.7211652,141.03,141.0,29.09689337]
[1763211751361,2.7211652,141.02,141.01,0.69]
[1763211752067,2.7211652,141.02,140.99,0.69]
[1763211752368,2.7211652,141.01,140.99,7.78267975]
[1763211752665,2.7211652,141.02,140.99,7.78267975]
[1763211752875,2.7211652,141.02,141.0,0.69]
[1763211754877,3.3311652,141.01,140.97,0.69]
[1763211755175,2.7211652,140.98,140.96,4.0211652]
[1763211755343,2.7211652,140.98,140.96,3.3311652]
[1763211755547,2.7211652,140.98,140.97,0.69]
[1763211755872,2.7211652,140.99,140.97,0.69]
[1763211756170,2.7211652,141.0,140.97,0.69]
[1763211756352,2.7211652,141.01,140.97,3.4111652]
[1763211756549,2.7211652,141.01,140.98,3.3311652]
[1763211756753,2.7211652,141.01,140.98,4.0211652]
[1763211757075,2.7211652,141.02,140.99,7.78254426]
[1763211757571,2.7211652,141.02,141.0,0.69]
[1763211758277,3.3311652,141.01,140.97,0.69]
[1763211758455,2.7211652,140.99,140.97,7.09254426]
[1763211758662,2.7211652,140.99,140.97,0.69]
[1763211758861,2.7211652,141.0,140.98,0.69]
[1763211760167,2.7211652,141.01,140.98,7.78315581]
[1763211760365,2.7211652,141.02,140.98,10.50432101]
[1763211760567,2.7211652,141.03,140.99,22.00665896]
[1763211761062,2.7211652,141.03,141.0,0.69]
[1763211761265,2.7211652,141.03,141.0,10.62401737]
[1763211761462,2.7211652,141.03,141.01,0.69]
[1763211763175,0.2,141.04,141.01,0.69]
[1763211763372,2.9211652,141.04,141.01,0.69]
[1763211763678,2.7211652,141.03,141.01,0.69]
[1763211765280,2.7211652,141.02,141.01,0.69]
[1763211766077,2.7211652,141.03,141.01,0.69]
[1763211767783,2.9211652,141.04,141.01,7.78162762]
[1763211768384,2.9211652,141.04,141.02,0.68]
[1763211768585,0.2,141.04,141.02,0.68]
[1763211769472,2.9211652,141.04,141.02,0.68]
[1763211771086,2.9211652,141.04,141.02,7.77113914]
[1763211771687,2.9211652,141.04,141.03,0.68]
[1763211771887,2.9211652,141.04,141.02,0.68]
[1763211772764,2.7211652,141.03,141.0,7.09198961]
[1763211772964,2.7211652,141.03,141.0,20.42717218]
[1763211773274,2.7211652,141.03,141.01,0.68]
[1763211773671,2.7211652,141.02,141.0,12.65518257]
[1763211773886,2.7211652,141.02,141.01,0.68]
[1763211774182,2.7211652,141.03,141.01,7.77168346]
[1763211774388,2.7211652,141.03,141.01,0.68]
[1763211779187,2.7211652,141.03,141.01,7.77168129]
[1763211780402,2.9211652,141.04,141.01,7.09168129]
[1763211780610,0.2,141.04,141.02,0.68]
[1763211782119,0.2,141.04,141.02,21.99211593]
[1763211782286,0.2,141.04,141.03,0.68]
[1763211782502,0.2,141.04,141.03,10.49185512]
[1763211782790,0.2,141.04,141.03,13.33286509]
[1763211784201,0.2,141.04,141.03,23.12169278]
[1763211785712,0.2,141.04,141.03,20.40052758]
[1763211785876,0.2,141.04,141.03,10.61169989]
[1763211786280,0.2,141.04,141.03,23.12169278]
[1763211786999,0.2,141.04,141.03,10.61169989]
[1763211787890,0.2,141.04,141.03,3.52100997]
[1763211788083,2.9211652,141.04,141.03,2.84100997]
[1763211788283,2.9211652,141.04,141.01,7.77152788]
[1763211788596,2.9211652,141.04,141.02,3.52161545]
[1763211788824,2.9211652,141.04,141.02,10.61252753]
[1763211789032,2.7511652,141.04,141.02,10.61252753]
[1763211789207,1.3079592,141.04,141.02,10.61252753]
[1763211789639,2.7211652,141.05,141.02,10.61252753]
[1763211790642,0.2,141.09,141.02,27.66050937]
[1763211790805,0.2,141.09,141.06,2.7211652]
[1763211791126,0.2,141.09,141.07,0.68]
[1763211791507,0.2,141.09,141.07,9.1]
[1763211791903,0.2,141.09,141.08,0.67]
[1763211792107,0.2,141.09,141.07,9.09]
[1763211792311,0.2,141.09,141.08,0.67]
[1763211793111,0.2,141.09,141.08,3.5108082]
[1763211794213,0.2,141.09,141.08,2.8408082]
[1763211796026,3.5311652,141.09,141.04,9.81106471]
[1763211796202,8.42,141.08,141.06,8.42]
[1763211796731,9.03,141.08,141.04,9.81106471]
[1763211797025,8.42,141.08,141.05,9.12]
[1763211797232,9.03,141.08,141.05,8.42]
[1763211797414,8.42,141.08,141.05,9.12]
[1763211798027,8.42,141.08,141.06,7.0891819]
[1763211798736,8.42,141.07,141.05,16.20951538]
[1763211799196,3.5311652,141.09,141.05,16.20951538]
[1763211799402,8.42,141.07,141.05,16.20951538]
[1763211800514,3.5311652,141.09,141.05,16.20951538]
[1763211800713,8.42,141.08,141.05,16.20951538]
[1763211801332,3.5311652,141.09,141.05,16.20951538]
[1763211801522,0.81,141.09,141.05,16.20951538]
[1763211801727,8.42,141.08,141.05,16.20951538]
[1763211802125,8.42,141.08,141.05,7.78951538]
[1763211802311,8.42,141.08,141.05,16.20951538]
[1763211804338,3.5311652,141.09,141.05,16.20951538]
[1763211804542,8.42,141.08,141.05,16.20951538]
[1763211805727,2.9211652,141.09,141.03,7.09048357]
[1763211805728,11.7511652,141.07,141.03,7.09048357]
[1763211805928,2.7211652,141.05,141.02,0.7]
[1763211806238,8.42,141.04,141.02,29.10324454]
[1763211807042,8.42,141.04,141.02,28.40324454]
[1763211807250,8.42,141.04,141.03,0.7]
[1763211807430,8.42,141.04,141.03,9.12]
[1763211808310,8.42,141.04,141.03,7.79068992]
[1763211808516,8.42,141.05,141.03,7.79068992]
[1763211808712,1.74114258,141.07,141.03,7.09068992]
[1763211808953,8.42,141.06,141.03,7.79068992]
[1763211809645,2.35114258,141.07,141.03,7.79068992]
[1763211809851,8.42,141.05,141.03,7.79068992]
[1763211810154,8.42,141.04,141.03,7.79068992]
[1763211812061,10.77114258,141.04,141.01,7.0912527]
[1763211812229,10.77114258,141.04,141.0,23.3512]
[1763211812230,1.74114258,141.03,141.0,7.09210525]
[1763211812550,10.77114258,141.04,141.01,22.6512]
[1763211812714,8.42,141.04,141.01,0.7]
[1763211813841,8.42,141.04,141.01,7.79166552]
[1763211814046,8.42,141.04,141.01,0.7]
[1763211814554,10.16114258,141.04,141.01,0.7]
[1763211814724,1.74114258,141.03,140.99,7.09249777]
[1763211814918,10.77114258,141.03,140.99,7.79249777]
[1763211815647,10.77114258,141.03,140.96,22.6512]
[1763211815648,10.16114258,141.02,140.96,22.6512]
[1763211815851,10.77114258,141.02,140.97,9.53485046]
[1763211816163,1.74114258,140.99,140.97,0.7]
[1763211816460,10.77114258,140.98,140.95,7.79456311]
[1763211816752,10.77114258,140.98,140.94,7.79507189]
[1763211817123,1.74114258,140.97,140.94,7.79507189]
[1763211817429,1.74114258,140.97,140.95,0.7]
[1763211817627,1.74114258,140.97,140.94,0.7]
[1763211818148,1.74114258,140.97,140.95,0.7]
[1763211818351,1.74114258,140.97,140.94,0.7]
[1763211818840,10.16114258,140.98,140.94,0.7]
[1763211819050,10.16114258,140.98,140.94,2.44114258]
[1763211819749,10.16114258,140.98,140.95,0.7]
[1763211820449,10.16114258,140.98,140.95,7.79462383]
[1763211821648,10.16114258,140.98,140.95,0.7]
[1763211822350,1.74114258,140.97,140.95,0.7]
[1763211822726,10.16114258,140.98,140.95,0.7]
[1763211823563,10.16114258,140.98,140.95,7.79468399]
[1763211825354,10.16114258,140.98,140.96,0.66]
[1763211825537,10.16114258,140.98,140.94,7.75521782]
[1763211825738,10.16114258,140.98,140.95,0.66]
[1763211826848,10.16114258,140.98,140.9,0.66]
[1763211826849,1.74114258,140.96,140.9,0.66]
[1763211827046,1.74114258,140.93,140.9,0.66]
[1763211827248,8.42,140.92,140.9,0.66]
[1763211827554,8.42,140.92,140.9,7.75684498]
[1763211827744,8.42,140.92,140.91,0.66]
[1763211828270,10.16114258,140.92,140.9,0.66]
[1763211828847,8.42,140.92,140.9,0.66]
[1763211829237,10.16114258,140.92,140.9,0.66]
[1763211829532,10.16114258,140.92,140.9,7.75718204]
[1763211831571,1.74114258,140.92,140.9,7.75718204]
[1763211831754,8.42,140.91,140.9,7.75718204]
[1763211832063,8.42,140.91,140.9,0.66]
[1763211832369,1.74114258,140.92,140.9,0.66]
[1763211832552,8.42,140.91,140.9,0.66]
[1763211832865,1.74114258,140.92,140.9,0.66]
[1763211833165,8.42,140.91,140.9,0.66]
[1763211834141,8.42,140.91,140.9,7.75723207]
[1763211837165,8.42,140.91,140.9,9.49837465]
[1763211837361,8.42,140.91,140.9,27.24145484]
[1763211837572,1.74114258,140.96,140.9,27.24145484]
[1763211837864,8.42,140.95,140.91,2.40114258]
[1763211838056,8.42,140.95,140.92,0.66]
[1763211838250,10.16114258,140.95,140.92,0.66]
[1763211838457,10.77114258,140.95,140.92,0.66]
[1763211838848,10.16114258,140.95,140.92,0.66]
[1763211839255,10.16114258,140.95,140.92,7.75612447]
[1763211840167,1.74114258,140.96,140.93,0.66]
[1763211840373,1.74114258,140.97,140.93,0.66]
[1763211840965,1.74114258,140.98,140.93,2.40114258]
[1763211841171,1.74114258,140.98,140.94,7.09521782]
[1763211841343,1.74114258,140.98,140.94,7.75521782]
[1763211841547,1.74114258,140.97,140.95,0.66]
[1763211842051,7.57457032,141.0,140.95,0.66]
[1763211842259,0.61,140.99,140.95,0.66]
[1763211843154,1.74114258,141.0,140.96,7.09421112]
[1763211843478,22.6512,141.01,140.93,0.66]
[1763211843479,1.74114258,140.98,140.93,0.66]
[1763211843774,0.61,140.99,140.93,27.23616706]
[1763211843974,1.74114258,140.98,140.93,27.23616706]
[1763211844181,1.74114258,140.98,140.94,0.66]